fUSD/lending_fUSD_20250514
["ID","MTS","AMOUNT","RATE_DAILY","PERIOD"]
[361095074,1747252250698,-151.0,0.00011241,2]
[361095075,1747252250708,-162.841706,0.00011241,2]
[361095076,1747252250718,-162.841706,0.00011241,2]
[361095077,1747252250727,-151.0,0.00011241,2]
[361095078,1747252250738,-879.0,0.00011241,2]
[361095079,1747252250748,-151.0,0.00011241,2]
[361095080,1747252250759,-154.0,0.00011241,2]
[361095081,1747252250985,-151.0,0.00011241,2]
[361095082,1747252250995,-667.977,0.00011241,2]
[361095083,1747252251005,-151.0,0.00011241,2]
[361095084,1747252251015,-6822.0,0.00011241,2]
[361095085,1747252251024,-151.0,0.00011241,2]
[361095086,1747252251033,-151.0,0.00011241,2]
[361095087,1747252251043,-4032.0,0.00011241,2]
[361095088,1747252251052,-151.0,0.00011241,2]
[361095089,1747252251061,-381.05022968,0.00011247,2]
[361095090,1747252251071,-300.0,0.00011247,2]
[361095091,1747252251080,-500.0,0.00011247,2]
[361095092,1747252251089,-500.0,0.00011247,2]
[361095093,1747252251098,-208.017201,0.00011248,2]
[361095094,1747252251107,-208.017201,0.00011248,2]
[361095095,1747252251116,-151.0,0.00011248,2]
[361095096,1747252251126,-151.0,0.00011248,2]
[361095097,1747252251135,-762.276375,0.00011248,2]
[361095098,1747252251144,-762.276375,0.00011248,2]
[361095099,1747252251157,-658.356149,0.00011248,2]
[361095100,1747252251167,-658.356149,0.00011248,2]
[361095101,1747252251176,-200.0,0.00011249,2]
[361095102,1747252251187,-200.0,0.00011249,2]
[361095103,1747252251198,-572.78222069,0.00011249,2]
[361095104,1747252251207,-200.0,0.00011249,2]
[361095105,1747252251215,-8850.10763616,0.00011339,2]
[361095106,1747252251224,-200.0,0.00011361,2]
[361095107,1747252251235,-200.0,0.00011361,2]
[361095108,1747252251244,-200.0,0.00011361,2]
[361095109,1747252251253,-218.66217265,0.00011368,2]
[361095110,1747252251262,-371.60624664,0.0001137,2]
[361095111,1747252251270,-580.29723877,0.00011372,2]
[361095112,1747252251279,-151.0,0.00011392,2]
[361095113,1747252251289,-151.0,0.00011392,2]
[361095114,1747252251299,-151.0,0.00011392,2]
[361095115,1747252251309,-151.0,0.00011392,2]
[361095116,1747252251318,-1311.2319791,0.00011436,2]
[361095117,1747252251328,-759.04843224,0.00011458,2]
[361095118,1747252251337,-8850.10763616,0.0001146,2]
[361095119,1747252251346,-151.0,0.00011468,2]
[361095120,1747252251355,-151.0,0.00011468,2]
[361095121,1747252251364,-151.0,0.00011468,2]
[361095122,1747252251374,-203.092698,0.00011468,2]
[361095123,1747252251383,-542.21411277,0.00011468,2]
[361095124,1747252251393,-400.0,0.00011468,2]
[361095125,1747252251402,-437.717818,0.00011468,2]
[361095126,1747252251411,-437.717818,0.00011468,2]
[361095127,1747252251420,-400.0,0.00011468,2]
[361095128,1747252251429,-431.3515879,0.00011468,2]
[361095129,1747252251438,-151.0,0.00011468,2]
[361095130,1747252251448,-151.0,0.00011468,2]
[361095131,1747252251457,-169.54676714,0.00011468,2]
[361095132,1747252251466,-400.0,0.00011468,2]
[361095133,1747252251476,-151.0,0.00011468,2]
[361095134,1747252251486,-161.85532943,0.00011468,2]
[361095135,1747252251495,-400.0,0.00011468,2]
[361095136,1747252251505,-400.0,0.00011468,2]
[361095137,1747252251514,-500.0,0.00011468,2]
[361095138,1747252251523,-400.0,0.00011468,2]
[361095139,1747252251533,-400.0,0.00011468,2]
[361095140,1747252251543,-400.0,0.00011468,2]
[361095141,1747252251552,-400.0,0.00011468,2]
[361095142,1747252251563,-450.0,0.00011468,2]
[361095143,1747252251572,-400.0,0.00011468,2]
[361095144,1747252251583,-400.0,0.00011468,2]
[361095145,1747252251592,-400.0,0.00011468,2]
[361095146,1747252251602,-400.0,0.00011468,2]
[361095147,1747252251611,-456.92,0.00011468,2]
[361095148,1747252251621,-400.0,0.00011468,2]
[361095149,1747252251630,-450.0,0.00011468,2]
[361095150,1747252251640,-150.22492481,0.00011468,2]
[361095151,1747252251649,-523.05,0.00011468,2]
[361095152,1747252251659,-400.0,0.00011468,2]
[361095153,1747252251669,-400.0,0.00011468,2]
[361095154,1747252251679,-450.0,0.00011468,2]
[361095155,1747252251689,-400.0,0.00011468,2]
[361095156,1747252251698,-579.33,0.00011468,2]
[361095157,1747252251708,-400.0,0.00011468,2]
[361095158,1747252251717,-418.35,0.00011468,2]
[361095159,1747252251726,-170.80364387,0.00011468,2]
[361095160,1747252251736,-450.0,0.00011468,2]
[361095161,1747252251745,-400.0,0.00011468,2]
[361095162,1747252251754,-400.0,0.00011468,2]
[361095163,1747252251764,-400.0,0.00011468,2]
[361095164,1747252251773,-500.0,0.00011468,2]
[361095165,1747252251782,-450.0,0.00011468,2]
[361095166,1747252251792,-500.0,0.00011468,2]
[361095167,1747252251801,-400.0,0.00011468,2]
[361095168,1747252251810,-192.12186258,0.00011468,2]
[361095169,1747252251819,-400.0,0.00011468,2]
[361095170,1747252251829,-400.0,0.00011468,2]
[361095171,1747252251838,-3063.23,0.00011468,2]
[361095172,1747252251848,-180.96659774,0.00011468,2]
[361095173,1747252251857,-500.0,0.00011468,2]
[361095174,1747252251867,-1535.7,0.00011468,2]
[361095175,1747252251877,-400.0,0.00011468,2]
[361095176,1747252251886,-400.0,0.00011468,2]
[361095177,1747252251895,-984.98,0.00011468,2]
[361095178,1747252251905,-400.0,0.00011468,2]
[361095179,1747252251914,-450.0,0.00011468,2]
[361095180,1747252251924,-400.0,0.00011468,2]
[361095181,1747252251933,-400.0,0.00011468,2]
[361095182,1747252251942,-400.0,0.00011468,2]
[361095183,1747252251951,-400.0,0.00011468,2]
[361095184,1747252251960,-450.0,0.00011468,2]
[361095185,1747252251970,-463.3,0.00011468,2]
[361095186,1747252251979,-991.25,0.00011468,2]
[361095187,1747252251988,-316.74379743,0.00011468,2]
[361095188,1747252251998,-1205.16,0.00011468,2]
[361095189,1747252252007,-400.0,0.00011468,2]
[361095190,1747252252016,-1544.61,0.00011468,2]
[361095191,1747252252025,-525.32,0.00011468,2]
[361095192,1747252252034,-400.0,0.00011468,2]
[361095193,1747252252043,-400.0,0.00011468,2]
[361095194,1747252252053,-400.0,0.00011468,2]
[361095195,1747252252062,-211.93196241,0.00011468,2]
[361095196,1747252252071,-400.0,0.00011468,2]
[361095197,1747252252081,-450.0,0.00011468,2]
[361095198,1747252252090,-411.8493704,0.00011468,2]
[361095199,1747252252099,-171.3878721,0.00011468,2]
[361095200,1747252252108,-486.2,0.00011468,2]
[361095201,1747252252117,-1246.76,0.00011468,2]
[361095202,1747252252126,-500.0,0.00011468,2]
[361095203,1747252252135,-400.0,0.00011468,2]
[361095204,1747252252145,-180.22249384,0.00011468,2]
[361095205,1747252252157,-400.0,0.00011468,2]
[361095206,1747252252166,-400.0,0.00011468,2]
[361095207,1747252252175,-425.06,0.00011468,2]
[361095208,1747252252185,-450.0,0.00011468,2]
[361095209,1747252252195,-735.44,0.00011468,2]
[361095210,1747252252204,-450.0,0.00011468,2]
[361095211,1747252252215,-1014.75,0.00011468,2]
[361095212,1747252252222,-400.0,0.00011468,2]
[361095213,1747252252230,-400.0,0.00011468,2]
[361095214,1747252252238,-500.0,0.00011468,2]
[361095215,1747252252246,-400.0,0.00011468,2]
[361095216,1747252252253,-500.0,0.00011468,2]
[361095217,1747252252261,-400.0,0.00011468,2]
[361095218,1747252252270,-443.28,0.00011468,2]
[361095219,1747252252278,-400.0,0.00011468,2]
[361095220,1747252252286,-622.61,0.00011468,2]
[361095221,1747252252294,-186.73302446,0.00011468,2]
[361095222,1747252252303,-845.16,0.00011468,2]
[361095223,1747252252312,-845.16,0.00011468,2]
[361095224,1747252252321,-845.16,0.00011468,2]
[361095225,1747252252331,-400.0,0.00011468,2]
[361095226,1747252252341,-503.58912514,0.00011468,2]
[361095227,1747252252350,-506.41741757,0.00011468,2]
[361095228,1747252252360,-400.0,0.00011468,2]
[361095229,1747252252370,-400.0,0.00011468,2]
[361095230,1747252252379,-500.0,0.00011468,2]
[361095231,1747252252389,-400.0,0.00011468,2]
[361095232,1747252252398,-727.04,0.00011468,2]
[361095233,1747252252407,-219.65779485,0.00011468,2]
[361095234,1747252252416,-400.0,0.00011468,2]
[361095235,1747252252425,-500.0,0.00011468,2]
[361095236,1747252252434,-500.0,0.00011468,2]
[361095237,1747252252444,-552.66,0.00011468,2]
[361095238,1747252252453,-400.0,0.00011468,2]
[361095239,1747252252462,-921.45,0.00011468,2]
[361095240,1747252252471,-400.0,0.00011468,2]
[361095241,1747252252480,-250.76352385,0.00011468,2]
[361095242,1747252252489,-564.1,0.00011468,2]
[361095243,1747252252498,-400.0,0.00011468,2]
[361095244,1747252252507,-500.0,0.00011468,2]
[361095245,1747252252516,-500.0,0.00011468,2]
[361095246,1747252252526,-500.0,0.00011468,2]
[361095247,1747252252535,-400.0,0.00011468,2]
[361095248,1747252252545,-400.0,0.00011468,2]
[361095249,1747252252554,-500.0,0.00011468,2]
[361095250,1747252252563,-500.0,0.00011468,2]
[361095251,1747252252572,-416.44,0.00011468,2]
[361095252,1747252252581,-500.0,0.00011468,2]
[361095253,1747252252590,-500.0,0.00011468,2]
[361095254,1747252252599,-500.0,0.00011468,2]
[361095255,1747252252609,-400.0,0.00011468,2]
[361095256,1747252252619,-1537.99,0.00011468,2]
[361095257,1747252252628,-500.0,0.00011468,2]
[361095258,1747252252638,-400.0,0.00011468,2]
[361095259,1747252252647,-500.0,0.00011468,2]
[361095260,1747252252656,-400.0,0.00011468,2]
[361095261,1747252252665,-500.0,0.00011468,2]
[361095262,1747252252674,-400.0,0.00011468,2]
[361095263,1747252252683,-400.0,0.00011468,2]
[361095264,1747252252692,-500.0,0.00011468,2]
[361095265,1747252252701,-4166.23,0.00011468,2]
[361095266,1747252252710,-170.84536218,0.00011468,2]
[361095267,1747252252720,-400.0,0.00011468,2]
[361095268,1747252252729,-500.0,0.00011468,2]
[361095269,1747252252739,-500.0,0.00011468,2]
[361095270,1747252252748,-400.0,0.00011468,2]
[361095271,1747252252758,-400.0,0.00011468,2]
[361095272,1747252252767,-400.0,0.00011468,2]
[361095273,1747252252777,-876.32,0.00011468,2]
[361095274,1747252252786,-400.0,0.00011468,2]
[361095275,1747252252796,-400.0,0.00011468,2]
[361095276,1747252252806,-719.09,0.00011468,2]
[361095277,1747252252815,-500.0,0.00011468,2]
[361095278,1747252252825,-500.0,0.00011468,2]
[361095279,1747252252834,-219.31386995,0.00011468,2]
[361095280,1747252252843,-400.0,0.00011468,2]
[361095281,1747252252853,-400.0,0.00011468,2]
[361095282,1747252252862,-500.0,0.00011468,2]
[361095283,1747252252873,-500.0,0.00011468,2]
[361095284,1747252252882,-400.0,0.00011468,2]
[361095285,1747252252892,-400.0,0.00011468,2]
[361095286,1747252252901,-400.0,0.00011468,2]
[361095287,1747252252912,-81007.12,0.00011468,2]
[361095288,1747252252921,-500.0,0.00011468,2]
[361095289,1747252252930,-500.0,0.00011468,2]
[361095290,1747252252940,-1595.26,0.00011468,2]
[361095291,1747252252950,-400.0,0.00011468,2]
[361095292,1747252252959,-500.0,0.00011468,2]
[361095293,1747252252968,-400.0,0.00011468,2]
[361095294,1747252252978,-196.06659042,0.00011468,2]
[361095295,1747252252987,-500.0,0.00011468,2]
[361095296,1747252252997,-500.0,0.00011468,2]
[361095297,1747252253008,-1215.19,0.00011468,2]
[361095298,1747252253018,-500.0,0.00011468,2]
[361095299,1747252253028,-6940.22,0.00011468,2]
[361095300,1747252253038,-500.0,0.00011468,2]
[361095301,1747252253048,-500.0,0.00011468,2]
[361095302,1747252253057,-400.0,0.00011468,2]
[361095303,1747252253067,-500.0,0.00011468,2]
[361095304,1747252253076,-152.28712309,0.00011468,2]
[361095305,1747252253086,-521.96,0.00011468,2]
[361095306,1747252253095,-500.0,0.00011468,2]
[361095307,1747252253105,-400.0,0.00011468,2]
[361095308,1747252253114,-472.76,0.00011468,2]
[361095309,1747252253124,-505.82879114,0.00011468,2]
[361095310,1747252253134,-227.88125923,0.00011468,2]
[361095311,1747252253143,-400.0,0.00011468,2]
[361095312,1747252253155,-192.90751446,0.00011468,2]
[361095313,1747252253165,-400.0,0.00011468,2]
[361095314,1747252253175,-400.0,0.00011468,2]
[361095315,1747252253185,-400.0,0.00011468,2]
[361095316,1747252253259,-654.53,0.00011468,2]
[361095317,1747252253270,-1911.29,0.00011468,2]
[361095318,1747252253279,-400.0,0.00011468,2]
[361095319,1747252253289,-400.0,0.00011468,2]
[361095320,1747252253298,-858.75,0.00011468,2]
[361095321,1747252253307,-191.35751775,0.00011468,2]
[361095322,1747252253316,-500.0,0.00011468,2]
[361095323,1747252253325,-400.0,0.00011468,2]
[361095324,1747252253334,-2596.99,0.00011468,2]
[361095325,1747252253344,-377.41975679,0.00011468,2]
[361095326,1747252253353,-400.0,0.00011468,2]
[361095327,1747252253362,-500.0,0.00011468,2]
[361095328,1747252253372,-500.0,0.00011468,2]
[361095329,1747252253382,-1007.545,0.00011468,2]
[361095330,1747252253391,-400.0,0.00011468,2]
[361095331,1747252253401,-944.952736,0.00011468,2]
[361095332,1747252253410,-631.67,0.00011468,2]
[361095333,1747252253420,-697.3,0.00011468,2]
[361095334,1747252253429,-500.0,0.00011468,2]
[361095335,1747252253438,-400.0,0.00011468,2]
[361095336,1747252253447,-633.46,0.00011468,2]
[361095337,1747252253457,-500.0,0.00011468,2]
[361095338,1747252253466,-400.0,0.00011468,2]
[361095339,1747252253476,-2360.3,0.00011468,2]
[361095340,1747252253485,-500.0,0.00011468,2]
[361095341,1747252253494,-168.13715795,0.00011468,2]
[361095342,1747252253504,-323.62135052,0.00011468,2]
[361095343,1747252253514,-400.0,0.00011468,2]
[361095344,1747252253524,-400.0,0.00011468,2]
[361095345,1747252253535,-1335.81,0.00011468,2]
[361095346,1747252253545,-400.0,0.00011468,2]
[361095347,1747252253554,-400.0,0.00011468,2]
[361095348,1747252253564,-400.0,0.00011468,2]
[361095349,1747252253573,-581.88,0.00011468,2]
[361095350,1747252253582,-400.0,0.00011468,2]
[361095351,1747252253591,-500.0,0.00011468,2]
[361095352,1747252253600,-400.0,0.00011468,2]
[361095353,1747252253610,-845.63,0.00011468,2]
[361095354,1747252253621,-619.72,0.00011468,2]
[361095355,1747252253630,-500.0,0.00011468,2]
[361095356,1747252253639,-150.02739365,0.00011468,2]
[361095357,1747252253648,-1367.534518,0.00011468,2]
[361095358,1747252253657,-242.44737404,0.00011468,2]
[361095359,1747252253667,-400.0,0.00011468,2]
[361095360,1747252253677,-500.0,0.00011468,2]
[361095361,1747252253686,-1263.67,0.00011468,2]
[361095362,1747252253695,-1517.09,0.00011468,2]
[361095363,1747252253705,-1106.03,0.00011468,2]
[361095364,1747252253714,-1298.07,0.00011468,2]
[361095365,1747252253723,-400.59446917,0.00011468,2]
[361095366,1747252253732,-280.65923643,0.00011468,2]
[361095367,1747252253742,-400.0,0.00011468,2]
[361095368,1747252253751,-1000.0,0.00011468,2]
[361095369,1747252253761,-499.1809085,0.00011468,2]
[361095370,1747252253770,-807.54,0.00011468,2]
[361095371,1747252253781,-1386.78,0.00011468,2]
[361095372,1747252253791,-500.0,0.00011468,2]
[361095373,1747252253799,-647.0,0.00011468,2]
[361095374,1747252253809,-150.0,0.00011469,2]
[361095375,1747252253818,-400.0,0.00011469,2]
[361095376,1747252253827,-452.08979236,0.00011469,2]
[361095377,1747252253837,-450.0,0.00011469,2]
[361095378,1747252253847,-350.16249584,0.00011469,2]
[361095379,1747252253856,-450.0,0.00011469,2]
[361095380,1747252253866,-400.0,0.00011469,2]
[361095381,1747252253876,-167.0461367,0.00011469,2]
[361095382,1747252253885,-400.0,0.00011469,2]
[361095383,1747252253894,-161.39291497,0.00011469,2]
[361095384,1747252253904,-181.96617735,0.00011469,2]
[361095385,1747252253913,-303.98180571,0.00011469,2]
[361095386,1747252253922,-433.71411063,0.00011469,2]
[361095387,1747252253932,-189.81679441,0.00011469,2]
[361095388,1747252253942,-151.0,0.00011469,2]
[361095389,1747252253951,-400.0,0.00011469,2]
[361095390,1747252253961,-400.0,0.00011469,2]
[361095391,1747252253971,-400.0,0.00011469,2]
[361095392,1747252253981,-400.0,0.00011469,2]
[361095393,1747252253990,-400.0,0.00011469,2]
[361095394,1747252254000,-582.97,0.00011469,2]
[361095395,1747252254010,-400.0,0.00011469,2]
[361095396,1747252254019,-498.21,0.00011469,2]
[361095397,1747252254029,-518.61,0.00011469,2]
[361095398,1747252254038,-400.0,0.00011469,2]
[361095399,1747252254048,-390.26576652,0.00011469,2]
[361095400,1747252254057,-400.0,0.00011469,2]
[361095401,1747252254067,-400.0,0.00011469,2]
[361095402,1747252254076,-966.25,0.00011469,2]
[361095403,1747252254086,-151.0,0.00011469,2]
[361095404,1747252254095,-400.0,0.00011469,2]
[361095405,1747252254107,-400.0,0.00011469,2]
[361095406,1747252254117,-400.0,0.00011469,2]
[361095407,1747252254126,-151.0,0.00011469,2]
[361095408,1747252254135,-427.82,0.00011469,2]
[361095409,1747252254144,-465.27,0.00011469,2]
[361095410,1747252254156,-400.0,0.00011469,2]
[361095411,1747252254166,-191.70867382,0.00011469,2]
[361095412,1747252254175,-732.105194,0.00011469,2]
[361095413,1747252254185,-151.0,0.00011469,2]
[361095414,1747252254194,-400.0,0.00011469,2]
[361095415,1747252254206,-732.105194,0.00011469,2]
[361095416,1747252254216,-400.0,0.00011469,2]
[361095417,1747252254225,-430.1,0.00011469,2]
[361095418,1747252254238,-516.28,0.00011469,2]
[361095419,1747252254250,-400.0,0.00011469,2]
[361095420,1747252254260,-400.0,0.00011469,2]
[361095421,1747252254269,-400.0,0.00011469,2]
[361095422,1747252254279,-400.0,0.00011469,2]
[361095423,1747252254288,-520.61,0.00011469,2]
[361095424,1747252254298,-400.0,0.00011469,2]
[361095425,1747252254311,-500.0,0.00011469,2]
[361095426,1747252254320,-400.0,0.00011469,2]
[361095427,1747252254331,-400.0,0.00011469,2]
[361095428,1747252254340,-400.0,0.00011469,2]
[361095429,1747252254350,-151.0,0.00011469,2]
[361095430,1747252254361,-400.0,0.00011469,2]
[361095431,1747252254370,-400.0,0.00011469,2]
[361095432,1747252254380,-151.0,0.00011469,2]
[361095433,1747252254389,-400.0,0.00011469,2]
[361095434,1747252254399,-537.9,0.00011469,2]
[361095435,1747252254410,-240.77,0.00011469,2]
[361095436,1747252254419,-844.57,0.00011469,2]
[361095437,1747252254429,-172.400668,0.00011469,2]
[361095438,1747252254440,-500.0,0.00011469,2]
[361095439,1747252254450,-2116.91,0.00011469,2]
[361095440,1747252254459,-400.0,0.00011469,2]
[361095441,1747252254469,-400.0,0.00011469,2]
[361095442,1747252254484,-500.0,0.00011469,2]
[361095443,1747252254498,-400.0,0.00011469,2]
[361095444,1747252254507,-500.0,0.00011469,2]
[361095445,1747252254516,-400.0,0.00011469,2]
[361095446,1747252254525,-400.0,0.00011469,2]
[361095447,1747252254534,-400.0,0.00011469,2]
[361095448,1747252254543,-500.0,0.00011469,2]
[361095449,1747252254552,-500.0,0.00011469,2]
[361095450,1747252254561,-500.0,0.00011469,2]
[361095451,1747252254572,-437.717818,0.00011469,2]
[361095452,1747252254581,-400.0,0.00011469,2]
[361095453,1747252254593,-500.0,0.00011469,2]
[361095454,1747252254603,-437.717818,0.00011469,2]
[361095455,1747252254612,-400.0,0.00011469,2]
[361095456,1747252254623,-500.0,0.00011469,2]
[361095457,1747252254632,-400.0,0.00011469,2]
[361095458,1747252254641,-500.0,0.00011469,2]
[361095459,1747252254651,-473.89,0.00011469,2]
[361095460,1747252254660,-151.0,0.00011469,2]
[361095461,1747252254669,-447.3,0.00011469,2]
[361095462,1747252254679,-400.0,0.00011469,2]
[361095463,1747252254689,-400.0,0.00011469,2]
[361095464,1747252254699,-400.0,0.00011469,2]
[361095465,1747252254708,-400.0,0.00011469,2]
[361095466,1747252254718,-151.0,0.00011469,2]
[361095467,1747252254727,-400.0,0.00011469,2]
[361095468,1747252254737,-400.0,0.00011469,2]
[361095469,1747252254747,-596.51,0.00011469,2]
[361095470,1747252254757,-378.78,0.00011469,2]
[361095471,1747252254767,-205.5,0.00011469,2]
[361095472,1747252254777,-400.0,0.00011469,2]
[361095473,1747252254788,-400.0,0.00011469,2]
[361095474,1747252254798,-500.0,0.00011469,2]
[361095475,1747252254807,-151.0,0.00011469,2]
[361095476,1747252254817,-400.0,0.00011469,2]
[361095477,1747252254826,-525.85,0.00011469,2]
[361095478,1747252254836,-400.0,0.00011469,2]
[361095479,1747252254846,-208.017201,0.00011469,2]
[361095480,1747252254855,-500.0,0.00011469,2]
[361095481,1747252254865,-208.017201,0.00011469,2]
[361095482,1747252254875,-151.0,0.00011469,2]
[361095483,1747252254885,-454.61,0.00011469,2]
[361095484,1747252254895,-151.0,0.00011469,2]
[361095485,1747252254904,-400.0,0.00011469,2]
[361095486,1747252254914,-520.03,0.00011469,2]
[361095487,1747252254923,-400.0,0.00011469,2]
[361095488,1747252254933,-439.12,0.00011469,2]
[361095489,1747252254942,-233.76924626,0.00011469,2]
[361095490,1747252254951,-400.0,0.00011469,2]
[361095491,1747252254961,-400.0,0.00011469,2]
[361095492,1747252254970,-400.0,0.00011469,2]
[361095493,1747252254979,-400.0,0.00011469,2]
[361095494,1747252254988,-400.0,0.00011469,2]
[361095495,1747252254997,-762.276375,0.00011469,2]
[361095496,1747252255007,-762.276375,0.00011469,2]
[361095497,1747252255017,-243.22861193,0.00011469,2]
[361095498,1747252255026,-1405.56,0.00011469,2]
[361095499,1747252255035,-456.22,0.00011469,2]
[361095500,1747252255045,-500.0,0.00011469,2]
[361095501,1747252255055,-400.0,0.00011469,2]
[361095502,1747252255064,-485.21,0.00011469,2]
[361095503,1747252255074,-4787.66,0.00011469,2]
[361095504,1747252255083,-751.98,0.00011469,2]
[361095505,1747252255093,-500.0,0.00011469,2]
[361095506,1747252255103,-500.0,0.00011469,2]
[361095507,1747252255112,-400.0,0.00011469,2]
[361095508,1747252255124,-1151.41,0.00011469,2]
[361095509,1747252255134,-400.0,0.00011469,2]
[361095510,1747252255145,-500.0,0.00011469,2]
[361095511,1747252255157,-1660.66,0.00011469,2]
[361095512,1747252255167,-151.0,0.00011469,2]
[361095513,1747252255177,-577.2,0.00011469,2]
[361095514,1747252255188,-1441.02,0.00011469,2]
[361095515,1747252255198,-400.0,0.00011469,2]
[361095516,1747252255207,-538.66,0.00011469,2]
[361095517,1747252255217,-400.16,0.00011469,2]
[361095518,1747252255228,-500.0,0.00011469,2]
[361095519,1747252255238,-1379.26,0.00011469,2]
[361095520,1747252255249,-8501.55,0.00011469,2]
[361095521,1747252255259,-400.0,0.00011469,2]
[361095522,1747252255270,-500.0,0.00011469,2]
[361095523,1747252255279,-12015.32,0.00011469,2]
[361095524,1747252255288,-1523.09,0.00011469,2]
[361095525,1747252255298,-400.0,0.00011469,2]
[361095526,1747252255308,-400.0,0.00011469,2]
[361095527,1747252255318,-400.0,0.00011469,2]
[361095528,1747252255327,-151.0,0.00011469,2]
[361095529,1747252255336,-1243.48,0.00011469,2]
[361095530,1747252255346,-500.0,0.00011469,2]
[361095531,1747252255356,-2419.17,0.00011469,2]
[361095532,1747252255366,-920.43,0.00011469,2]
[361095533,1747252255378,-400.0,0.00011469,2]
[361095534,1747252255387,-400.0,0.00011469,2]
[361095535,1747252255397,-198.23788,0.00011469,2]
[361095536,1747252255407,-832.86,0.00011469,2]
[361095537,1747252255417,-1878.08,0.00011469,2]
[361095538,1747252255427,-400.0,0.00011469,2]
[361095539,1747252255437,-400.0,0.00011469,2]
[361095540,1747252255447,-198.23788,0.00011469,2]
[361095541,1747252255458,-400.0,0.00011469,2]
[361095542,1747252255468,-665.61,0.00011469,2]
[361095543,1747252255478,-400.0,0.00011469,2]
[361095544,1747252255489,-403.36,0.00011469,2]
[361095545,1747252255499,-553.9,0.00011469,2]
[361095546,1747252255508,-702.25,0.00011469,2]
[361095547,1747252255518,-658.356149,0.00011469,2]
[361095548,1747252255528,-4532.68,0.00011469,2]
[361095549,1747252255537,-400.0,0.00011469,2]
[361095550,1747252255547,-658.356149,0.00011469,2]
[361095551,1747252255557,-400.0,0.00011469,2]
[361095552,1747252255567,-2599.27,0.00011469,2]
[361095553,1747252255577,-407.26,0.00011469,2]
[361095554,1747252255587,-400.0,0.00011469,2]
[361095555,1747252255596,-1088.86,0.00011469,2]
[361095556,1747252255606,-1962.54,0.00011469,2]
[361095557,1747252255616,-2680.29,0.00011469,2]
[361095558,1747252255626,-449.57,0.00011469,2]
[361095559,1747252255636,-698.41,0.00011469,2]
[361095560,1747252255647,-400.0,0.00011469,2]
[361095561,1747252255656,-400.0,0.00011469,2]
[361095562,1747252255666,-5601.78,0.00011469,2]
[361095563,1747252255676,-412.11,0.00011469,2]
[361095564,1747252255686,-561.5,0.00011469,2]
[361095565,1747252255696,-845.16,0.00011469,2]
[361095566,1747252255707,-467.49,0.00011469,2]
[361095567,1747252255717,-400.0,0.00011469,2]
[361095568,1747252255726,-400.0,0.00011469,2]
[361095569,1747252255736,-400.0,0.00011469,2]
[361095570,1747252255747,-400.0,0.00011469,2]
[361095571,1747252255756,-18647.47,0.00011469,2]
[361095572,1747252255767,-557.37,0.00011469,2]
[361095573,1747252255777,-417.387915,0.00011469,2]